bitfinex/quotes_SOLUSD_20230702
["timestamp","ask_amount","ask_price","bid_price","bid_amount"]
[1688261516384,22.557,18.753,18.739,186.714]
[1688261516706,198.7844,18.758,18.743,22.567]
[1688261516707,22.554,18.755,18.743,22.567]
[1688261517195,22.554,18.755,18.744,55.0]
[1688261517399,22.554,18.755,18.747,22.563]
[1688261517400,17.554,18.755,18.747,22.563]
[1688261517906,27.24304732,18.766,18.747,22.563]
[1688261517907,0.81697559,18.765,18.754,80.619]
[1688261518081,33.79,18.77,18.759,22.548]
[1688261518082,22.541,18.766,18.759,22.548]
[1688261518288,22.542,18.765,18.759,22.548]
[1688261518507,22.542,18.765,18.755,10.83719922]
[1688261518686,22.542,18.765,18.748,55.0]
[1688261518687,22.542,18.765,18.753,22.555]
[1688261518884,22.542,18.765,18.752,22.556]
[1688261519196,22.542,18.765,18.753,77.555]
[1688261519379,22.542,18.765,18.753,88.39219922]
[1688261519802,91.2324,18.769,18.753,33.39219922]
[1688261520004,91.2324,18.769,18.758,80.602]
[1688261520185,57.994,18.778,18.762,80.587]
[1688261520385,22.532,18.774,18.762,80.587]
[1688261520589,22.532,18.774,18.766,22.54]
[1688261520992,22.532,18.774,18.764,22.542]
[1688261521205,22.532,18.774,18.765,55.0]
[1688261521900,22.532,18.774,18.765,77.541]
[1688261522202,22.532,18.774,18.765,22.541]
[1688261522987,22.532,18.774,18.73,411.02863425]
[1688261522988,75.0,18.773,18.752,105.959]
[1688261523184,114.516,18.77,18.752,58.072]
[1688261523493,22.543,18.764,18.756,22.552]
[1688261523692,22.543,18.764,18.754,22.554]
[1688261525188,22.543,18.764,18.755,55.0]
[1688261525392,22.543,18.764,18.755,22.553]
[1688261528005,55.0,18.763,18.743,164.108]
[1688261528193,80.609,18.757,18.744,4.58888374]
[1688261528405,80.609,18.757,18.74,58.109]
[1688261528598,95.2748,18.756,18.74,58.109]
[1688261528799,22.558,18.752,18.744,22.566]
[1688261529500,22.552,18.757,18.747,22.563]
[1688261529687,105.892,18.765,18.751,22.558]
[1688261529688,22.549,18.759,18.751,22.558]
[1688261530098,22.549,18.759,18.748,58.083]
[1688261530099,22.549,18.759,18.754,22.555]
[1688261530301,22.549,18.759,18.755,77.552]
[1688261530501,22.549,18.759,18.753,22.555]
[1688261530804,22.549,18.759,18.752,77.557]
[1688261531008,22.549,18.759,18.752,55.0]
[1688261531808,22.549,18.759,18.752,77.556]
[1688261535699,22.549,18.759,18.752,55.0]
[1688261535894,80.601,18.759,18.748,22.561]
[1688261536095,80.601,18.759,18.747,22.563]
[1688261536393,80.601,18.759,18.73,59.84132121]
[1688261536394,22.555,18.755,18.745,22.565]
[1688261537498,22.555,18.755,18.746,55.0]
[1688261537698,22.555,18.755,18.746,77.564]
[1688261537893,22.555,18.755,18.741,58.062]
[1688261538104,22.555,18.755,18.742,20.0]
[1688261538704,22.555,18.755,18.739,20.0]
[1688261538904,22.555,18.755,18.742,22.569]
[1688261539311,22.555,18.755,18.743,55.0]
[1688261539500,22.555,18.755,18.744,22.566]
[1688261539697,22.555,18.755,18.745,55.0]
[1688261540022,22.555,18.755,18.745,77.566]
[1688261541316,22.555,18.755,18.739,20.0]
[1688261541497,22.555,18.755,18.74,22.571]
[1688261541695,22.555,18.755,18.741,20.0]
[1688261541900,22.555,18.755,18.743,22.567]
[1688261542614,22.555,18.755,18.744,55.0]
[1688261543711,22.555,18.755,18.741,42.57]
[1688261545005,22.555,18.755,18.742,55.0]
[1688261546517,55.0,18.754,18.732,58.135]
[1688261546702,80.651,18.748,18.735,22.577]
[1688261547508,22.567,18.744,18.735,22.577]
[1688261547915,22.567,18.744,18.736,77.576]
[1688261551010,22.567,18.744,18.736,55.0]
[1688261552025,22.567,18.744,18.735,55.0]
[1688261552229,22.567,18.744,18.735,77.577]
[1688261553625,22.567,18.744,18.735,55.0]
[1688261553827,22.567,18.744,18.734,77.578]
[1688261556137,22.567,18.744,18.734,55.0]
[1688261556432,22.567,18.744,18.733,55.0]
[1688261556725,22.567,18.744,18.733,77.58]
[1688261558230,90.2517,18.747,18.733,55.0]
[1688261558729,22.567,18.744,18.733,55.0]
[1688261559720,22.567,18.744,18.733,77.58]
[1688261563333,22.567,18.744,18.733,55.0]
[1688261563539,22.567,18.744,18.729,22.584]
[1688261563828,22.567,18.744,18.73,20.0]
[1688261564221,22.567,18.744,18.73,42.584]
[1688261564624,22.567,18.744,18.73,65.168]
[1688261564820,22.567,18.744,18.734,22.579]
[1688261565037,22.567,18.744,18.735,55.0]
[1688261568926,22.567,18.744,18.734,55.0]
[1688261572246,22.567,18.744,18.734,77.578]
[1688261585333,22.567,18.744,18.734,55.0]
[1688261585535,22.567,18.744,18.735,55.0]
[1688261585748,22.567,18.744,18.733,55.0]
[1688261587446,22.567,18.744,18.733,77.579]
[1688261587858,22.567,18.744,18.733,55.0]
[1688261588033,22.567,18.744,18.731,27.06071041]
[1688261588034,22.567,18.744,18.732,55.0]
[1688261588238,22.567,18.744,18.73,76.504]
[1688261588239,22.567,18.744,18.731,55.0]
[1688261588552,22.567,18.744,18.732,20.0]
[1688261588851,22.567,18.744,18.733,55.0]
[1688261594057,22.567,18.744,18.732,20.0]
[1688261594763,22.567,18.744,18.731,20.0]
[1688261594942,22.567,18.744,18.732,55.0]
[1688261596558,22.567,18.744,18.732,77.581]
[1688261600363,22.567,18.744,18.731,20.0]
[1688261600567,22.567,18.744,18.728,20.0]
[1688261600748,22.567,18.744,18.729,55.0]
[1688261600945,22.567,18.744,18.73,20.0]
[1688261601145,22.567,18.744,18.731,55.0]
[1688261601348,22.567,18.744,18.732,20.0]
[1688261602055,22.567,18.744,18.732,42.58]
[1688261602259,22.567,18.744,18.733,55.0]
[1688261602458,22.567,18.744,18.736,22.576]
[1688261602667,22.567,18.744,18.737,55.0]
[1688261603949,22.567,18.744,18.732,20.0]
[1688261604156,22.567,18.744,18.734,22.578]
[1688261604472,22.567,18.744,18.735,55.0]
[1688261606669,22.567,18.744,18.734,22.578]
[1688261606670,22.567,18.744,18.732,42.58]
[1688261607759,22.567,18.744,18.732,42.581]
[1688261607960,22.567,18.744,18.732,20.0]
[1688261608262,22.567,18.744,18.732,42.581]
[1688261609682,22.567,18.744,18.732,20.0]
[1688261609864,22.567,18.744,18.728,20.0]
[1688261610066,22.567,18.744,18.729,55.0]
[1688261610365,22.567,18.744,18.731,22.582]
[1688261610574,22.567,18.744,18.732,55.0]
[1688261611469,22.567,18.744,18.732,77.58]
[1688261614582,22.567,18.744,18.732,55.0]
[1688261615397,20.0,18.743,18.727,80.684]
[1688261615682,186.73,18.739,18.72,33.89]
[1688261615887,186.73,18.739,18.721,22.593]
[1688261616486,92.5743,18.738,18.721,22.593]
[1688261616668,80.713,18.733,18.721,22.593]
[1688261616990,80.713,18.733,18.722,20.0]
[1688261617176,80.713,18.733,18.723,55.0]
[1688261617372,80.713,18.733,18.722,20.0]
[1688261617577,80.713,18.733,18.721,42.594]
[1688261618797,80.713,18.733,18.722,55.0]
[1688261622588,80.713,18.733,18.722,77.593]
[1688261623295,80.713,18.733,18.722,55.0]
[1688261624388,80.713,18.733,18.721,20.0]
[1688261624597,80.736,18.728,18.713,40.05638294]
[1688261624776,80.736,18.728,18.706,493.61677477]
[1688261624777,80.736,18.728,18.711,8.41428754]
[1688261624979,80.736,18.728,18.713,22.603]
[1688261625789,80.736,18.728,18.713,22.604]
[1688261626794,80.736,18.728,18.71,153.89961975]
[1688261626795,80.736,18.728,18.714,77.602]
[1688261630195,80.736,18.728,18.714,55.0]
[1688261630400,80.736,18.728,18.714,77.603]
[1688261630899,80.736,18.728,18.714,55.0]
[1688261631079,33.92,18.73,18.71,27.25561975]
[1688261631080,186.889,18.723,18.71,27.25561975]
[1688261631281,186.889,18.723,18.711,20.0]
[1688261631896,186.889,18.723,18.709,20.0]
[1688261632200,22.598,18.719,18.709,22.608]
[1688261633300,22.598,18.719,18.707,22.61]
[1688261633491,22.598,18.719,18.703,58.223]
[1688261633695,22.598,18.719,18.703,85.57319443]
[1688261633898,22.598,18.719,18.706,22.612]
[1688261635384,22.598,18.719,18.707,55.0]
[1688261635585,22.598,18.719,18.707,77.611]
[1688261641784,22.598,18.719,18.71,33.92]
[1688261642092,22.598,18.719,18.712,22.604]
[1688261642291,22.598,18.719,18.713,77.604]
[1688261642505,22.598,18.719,18.714,55.0]
[1688261642691,22.598,18.719,18.714,22.602]
[1688261643086,22.598,18.719,18.715,77.601]
[1688261643303,22.596,18.721,18.715,77.601]
[1688261643509,22.592,18.723,18.715,77.601]
[1688261643692,22.579,18.735,18.716,14.1421607]
[1688261643904,58.111,18.74,18.72,169.38]
[1688261644091,169.65,18.75,18.729,22.585]
[1688261644092,58.102,18.743,18.729,22.585]
[1688261644611,80.682,18.74,18.729,22.585]
[1688261644990,80.682,18.74,18.727,22.586]
[1688261645222,91.7971,18.739,18.728,55.0]
[1688261645420,22.577,18.736,18.728,55.0]
[1688261647402,22.577,18.736,18.728,77.585]
[1688261649624,22.577,18.736,18.728,55.0]
[1688261649910,22.577,18.736,18.727,55.0]
[1688261650413,22.577,18.736,18.727,77.587]
[1688261651906,22.577,18.736,18.727,55.0]
[1688261652214,22.577,18.736,18.726,55.0]
[1688261652618,22.577,18.736,18.726,77.588]
[1688261653402,22.577,18.736,18.721,22.594]
[1688261653694,22.577,18.736,18.722,20.0]
[1688261654509,22.577,18.736,18.723,55.0]
[1688261657823,22.577,18.736,18.722,42.593]
[1688261657824,22.577,18.736,18.722,20.0]
[1688261658007,80.722,18.731,18.721,20.0]
[1688261658907,80.722,18.731,18.721,42.594]
[1688261660230,80.722,18.731,18.721,20.0]
[1688261660522,80.722,18.731,18.717,20.0]
[1688261660717,80.722,18.731,18.718,55.0]
[1688261660909,80.722,18.731,18.719,20.0]
[1688261661108,80.722,18.731,18.72,55.0]
[1688261661309,80.722,18.731,18.721,42.594]
[1688261661713,22.583,18.731,18.721,42.594]
[1688261663028,22.583,18.731,18.721,22.594]
[1688261664422,22.581,18.733,18.725,22.589]
[1688261664624,22.581,18.733,18.728,22.586]
[1688261665327,22.581,18.733,18.71,169.46]
[1688261665534,22.581,18.733,18.717,58.18]
[1688261665725,22.581,18.733,18.716,4.47006505]
[1688261665935,20.0,18.732,18.715,4.47006505]
[1688261666121,22.587,18.727,18.718,22.597]
[1688261666619,22.587,18.727,18.716,22.6]
[1688261667128,22.587,18.727,18.717,55.0]
[1688261669132,22.587,18.727,18.703,58.225]
[1688261669320,20.0,18.726,18.708,22.61]
[1688261669631,22.595,18.721,18.708,22.61]
[1688261670414,22.595,18.721,18.706,22.612]
[1688261671220,22.601,18.716,18.706,22.612]
[1688261671528,22.601,18.716,18.707,55.0]
[1688261671828,22.601,18.716,18.705,22.614]
[1688261672011,22.601,18.716,18.701,58.231]
[1688261672012,22.601,18.716,18.7,61.27455032]
[1688261672215,22.601,18.716,18.701,20.0]
[1688261672615,22.601,18.716,18.69,269.44]
[1688261672832,80.821,18.708,18.692,58.259]
[1688261673031,80.821,18.708,18.693,22.628]
[1688261673637,80.821,18.708,18.691,22.63]
[1688261673638,55.0,18.707,18.691,22.63]
[1688261673933,80.845,18.703,18.692,20.0]
[1688261674736,80.845,18.703,18.692,42.629]
[1688261675838,80.845,18.703,18.692,20.0]
[1688261676441,80.845,18.703,18.691,20.0]
[1688261676735,80.845,18.703,18.691,19.5]
[1688261677316,80.845,18.703,18.691,42.13]
[1688261678619,80.845,18.703,18.692,55.0]
[1688261678819,80.845,18.703,18.693,22.628]
[1688261680438,22.617,18.703,18.694,55.0]
[1688261680635,22.617,18.703,18.696,22.624]
[1688261680824,92.5154,18.707,18.697,53.5]
[1688261681140,92.5154,18.707,18.699,22.62]
[1688261681141,22.616,18.704,18.699,22.62]
[1688261682624,22.616,18.704,18.697,76.122]
[1688261685946,22.616,18.704,18.697,53.5]
[1688261686245,22.616,18.704,18.694,22.626]
[1688261686829,22.612,18.707,18.694,22.626]
[1688261687132,22.612,18.707,18.694,80.844]
[1688261687326,22.612,18.707,18.694,22.626]
[1688261687644,22.612,18.707,18.698,22.622]
[1688261687840,22.612,18.707,18.7,22.62]
[1688261688038,22.612,18.707,18.701,55.0]
[1688261688238,22.612,18.707,18.701,77.619]
[1688261689042,22.612,18.707,18.701,55.0]
[1688261689248,22.612,18.707,18.7,55.0]
[1688261690047,22.612,18.707,18.693,55.0]
[1688261690235,22.612,18.707,18.696,22.624]
[1688261691449,22.612,18.707,18.697,55.0]
[1688261691648,498.98952455,18.806,18.698,80.863]
[1688261691649,46.838072,18.716,18.698,80.863]
[1688261691838,22.606,18.712,18.7,33.92]
[1688261692039,22.606,18.712,18.703,22.615]
[1688261692443,22.606,18.712,18.704,55.0]
[1688261692648,22.606,18.712,18.705,22.613]
[1688261692944,22.606,18.712,18.706,55.0]
[1688261693351,22.606,18.712,18.705,77.613]
[1688261694941,22.604,18.714,18.705,77.613]
[1688261702466,65.77258435,18.722,18.705,77.613]
[1688261702650,22.598,18.719,18.713,22.603]
[1688261702849,22.598,18.719,18.71,33.92]
[1688261703046,22.598,18.719,18.705,55.0]
[1688261703047,22.598,18.719,18.711,75.0]
[1688261703649,22.598,18.719,18.711,20.0]
[1688261703848,22.598,18.719,18.704,20.0]
[1688261704061,22.598,18.719,18.705,22.613]
[1688261704381,22.598,18.719,18.704,26.273338]
[1688261704551,55.0,18.718,18.69,269.9]
[1688261704750,186.994,18.712,18.699,22.62]
[1688261705454,22.606,18.712,18.699,22.62]
[1688261705661,62.60458435,18.718,18.699,22.62]
[1688261705662,22.603,18.714,18.703,22.615]
[1688261705965,22.605,18.712,18.703,22.615]
[1688261706854,22.605,18.712,18.704,55.0]
[1688261707057,22.605,18.712,18.704,77.614]
[1688261708667,22.605,18.712,18.697,106.273]
[1688261708668,22.605,18.712,18.695,58.247]
[1688261708872,22.605,18.712,18.696,20.0]
[1688261709572,94.8936,18.711,18.696,20.0]
[1688261709778,22.612,18.707,18.7,22.619]
[1688261709962,94.8936,18.711,18.701,20.0]
[1688261710277,94.8936,18.711,18.704,22.615]
[1688261710963,117.5006,18.711,18.704,22.615]
[1688261711278,117.5006,18.711,18.699,58.238]
[1688261711279,22.607,18.711,18.699,58.238]
[1688261711460,94.8936,18.71,18.699,22.621]
[1688261711654,22.612,18.707,18.699,22.621]
[1688261711953,94.8936,18.71,18.7,53.92]
[1688261712165,94.8936,18.71,18.703,22.616]
[1688261712677,117.5016,18.71,18.701,22.618]
[1688261712860,22.608,18.71,18.702,20.0]
[1688261713474,22.608,18.71,18.701,20.0]
[1688261713774,22.608,18.71,18.701,42.619]
[1688261718761,27.25195774,18.716,18.701,42.619]
[1688261718961,22.6,18.717,18.706,80.827]
[1688261719162,97.0677,18.718,18.71,22.608]
[1688261719569,119.6667,18.718,18.713,22.604]
[1688261719968,119.6667,18.718,18.711,77.605]
[1688261721081,22.599,18.718,18.711,77.605]
[1688261723678,22.599,18.718,18.711,55.0]
[1688261723984,22.599,18.718,18.71,77.607]
[1688261724186,22.599,18.718,18.71,55.0]
[1688261724781,22.599,18.718,18.705,22.613]
[1688261725082,22.599,18.718,18.706,77.612]
[1688261727280,22.599,18.718,18.706,55.0]
[1688261728086,22.599,18.718,18.706,77.612]
[1688261730983,22.599,18.718,18.71,22.607]
[1688261731173,22.596,18.72,18.715,22.601]
[1688261731574,22.596,18.72,18.716,55.0]
[1688261732278,22.596,18.72,18.715,55.0]
[1688261733269,22.596,18.72,18.71,10.83719922]
[1688261733468,22.596,18.72,18.711,75.0]
[1688261734781,22.596,18.72,18.711,97.605]
[1688261735483,22.594,18.722,18.711,97.605]
[1688261741488,22.591,18.724,18.711,108.44219922]
[1688261741685,22.591,18.724,18.712,10.83719922]
[1688261741885,22.591,18.724,18.715,22.601]
[1688261742189,22.591,18.724,18.718,22.598]
[1688261742596,22.591,18.724,18.719,55.0]
[1688261742790,22.591,18.724,18.719,77.597]
[1688261743094,22.591,18.724,18.717,22.598]
[1688261743275,22.591,18.724,18.712,10.83719922]
[1688261743481,22.591,18.724,18.716,22.6]
[1688261743681,22.591,18.724,18.717,55.0]
[1688261743881,22.591,18.724,18.717,77.599]
[1688261747582,106.068,18.734,18.717,77.599]
[1688261747894,20.0,18.733,18.717,88.43619922]
[1688261748092,20.0,18.733,18.717,77.599]
[1688261748093,80.731,18.729,18.717,77.599]
[1688261759997,22.586,18.729,18.722,22.592]
[1688261760197,22.586,18.729,18.724,22.591]
[1688261760595,22.586,18.729,18.722,22.592]
[1688261760893,22.586,18.729,18.723,55.0]
[1688261762205,22.586,18.729,18.72,56.584]
[1688261762413,22.586,18.729,18.718,22.597]
[1688261762615,22.586,18.729,18.719,55.0]
[1688261765713,22.586,18.729,18.72,33.99]
[1688261765917,92.062,18.74,18.722,22.592]
[1688261766111,22.577,18.736,18.722,80.756]
[1688261766422,22.577,18.736,18.723,65.83719922]
[1688261766616,190.9946,18.74,18.726,22.587]
[1688261766617,98.9326,18.74,18.726,22.587]
[1688261766912,22.575,18.738,18.732,22.581]
[1688261767320,22.575,18.738,18.733,55.0]
[1688261767505,22.575,18.738,18.733,77.58]
[1688261767817,22.575,18.738,18.729,22.584]
[1688261768019,22.575,18.738,18.73,55.0]
[1688261770408,22.575,18.738,18.73,77.584]
[1688261771116,22.575,18.738,18.73,55.0]
[1688261771506,22.575,18.738,18.729,55.0]
[1688261772612,22.575,18.738,18.729,77.584]
[1688261774719,22.575,18.738,18.723,58.162]
[1688261774720,22.575,18.738,18.723,22.591]
[1688261775026,30.17958435,18.738,18.723,22.591]
[1688261775227,30.17958435,18.738,18.716,106.16]
[1688261775228,30.17958435,18.738,18.71,169.48]
[1688261775413,82.60458435,18.737,18.719,33.73]
[1688261775621,186.796,18.732,18.719,33.73]
[1688261775911,186.796,18.732,18.713,10.83719922]
[1688261775912,22.589,18.726,18.718,22.598]
[1688261776508,22.589,18.726,18.719,55.0]
[1688261776817,22.587,18.728,18.721,22.594]
[1688261777028,22.587,18.728,18.722,55.0]
[1688261777328,22.587,18.728,18.723,22.591]
[1688261777511,22.587,18.728,18.724,55.0]
[1688261777712,22.587,18.728,18.724,77.59]
[1688261778027,22.584,18.73,18.724,77.59]
[1688261778323,22.584,18.73,18.724,55.0]
[1688261778518,22.584,18.73,18.723,77.592]
[1688261780710,22.584,18.73,18.723,55.0]
[1688261781208,22.584,18.73,18.722,55.0]
[1688261781410,22.584,18.73,18.722,77.593]
[1688261782126,22.584,18.73,18.722,55.0]
[1688261782829,22.584,18.73,18.721,55.0]
[1688261783221,22.584,18.73,18.721,77.594]
[1688261791339,22.584,18.73,18.714,55.0]
[1688261791632,22.584,18.73,18.715,22.6]
[1688261793227,56.524,18.73,18.713,22.603]
[1688261793422,55.0,18.729,18.713,22.603]
[1688261793622,186.868,18.725,18.713,22.603]
[1688261793929,94.8413,18.724,18.713,22.603]
[1688261794132,22.595,18.721,18.711,22.606]
[1688261795530,22.595,18.721,18.704,69.05219922]
[1688261795731,128.732,18.721,18.706,22.612]
[1688261796139,22.595,18.721,18.706,91.66519922]
[1688261796337,128.732,18.721,18.706,33.44919922]
[1688261796523,128.732,18.721,18.707,55.0]
[1688261796723,128.732,18.721,18.709,22.609]
[1688261796923,128.732,18.721,18.71,55.0]
[1688261797124,128.732,18.721,18.71,77.608]
[1688261798234,128.732,18.721,18.71,55.0]
[1688261799523,128.732,18.721,18.707,22.611]
[1688261799849,80.794,18.714,18.701,1.14836217]
[1688261800158,55.0,18.713,18.691,26.76456109]
[1688261800449,55.0,18.713,18.695,22.626]
[1688261800450,80.827,18.707,18.695,22.626]
[1688261802031,22.612,18.707,18.695,22.626]
[1688261802232,80.825,18.707,18.695,22.626]
[1688261802655,22.612,18.707,18.695,22.626]
[1688261803737,22.612,18.707,18.696,55.0]
[1688261803943,22.612,18.707,18.698,22.622]
[1688261805045,22.612,18.707,18.699,55.0]
[1688261805253,22.612,18.707,18.698,22.622]
[1688261805550,22.612,18.707,18.693,22.628]
[1688261807658,22.612,18.707,18.694,77.626]
[1688261808530,22.612,18.707,18.694,22.626]
[1688261809553,22.612,18.707,18.695,55.0]
[1688261810039,22.612,18.707,18.694,55.0]
[1688261811057,22.612,18.707,18.697,22.623]
[1688261813246,98.3803,18.712,18.698,55.0]
[1688261813247,22.611,18.708,18.698,55.0]
[1688261813444,22.611,18.708,18.701,22.619]
[1688261815047,22.611,18.708,18.701,22.618]
[1688261816357,22.611,18.708,18.699,22.62]
[1688261816655,22.611,18.708,18.7,55.0]
[1688261817759,22.611,18.708,18.699,22.62]
[1688261818547,22.611,18.708,18.693,58.255]
[1688261818749,22.611,18.708,18.697,22.623]
[1688261818942,22.611,18.708,18.698,55.0]
[1688261819254,22.611,18.708,18.699,22.621]
[1688261820761,80.821,18.708,18.698,55.0]
[1688261821462,22.611,18.708,18.698,77.622]
[1688261826666,22.611,18.708,18.698,55.0]
[1688261826967,22.611,18.708,18.697,55.0]
[1688261827149,22.611,18.708,18.697,77.623]
[1688261829770,22.611,18.708,18.695,22.625]
[1688261832771,22.611,18.708,18.697,22.623]
[1688261832955,22.611,18.708,18.698,55.0]
[1688261833153,22.611,18.708,18.701,22.619]
[1688261833660,22.611,18.708,18.698,55.0]
[1688261833869,22.611,18.708,18.698,77.622]
[1688261836463,22.611,18.708,18.698,88.45919922]
[1688261836766,22.609,18.71,18.699,10.83719922]
[1688261836971,98.3803,18.712,18.702,22.617]
[1688261837365,22.609,18.71,18.703,55.0]
[1688261837666,22.609,18.71,18.705,22.614]
[1688261838366,22.609,18.71,18.703,22.615]
[1688261838571,22.609,18.71,18.695,58.248]
[1688261838770,22.609,18.71,18.699,22.62]
[1688261839173,22.609,18.71,18.699,33.45719922]
[1688261839975,22.609,18.71,18.7,55.0]
[1688261840269,22.609,18.71,18.703,22.616]
[1688261840469,22.609,18.71,18.699,10.83719922]
[1688261840470,22.609,18.71,18.704,77.614]
[1688261840975,22.609,18.71,18.698,22.621]
[1688261841164,22.609,18.71,18.69,133.71]
[1688261841369,22.609,18.71,18.691,40.38600626]
[1688261841970,22.609,18.71,18.692,55.0]
[1688261842174,22.609,18.71,18.697,22.623]
[1688261842377,22.609,18.71,18.698,55.0]
[1688261842562,22.609,18.71,18.7,22.62]
[1688261846965,22.609,18.71,18.698,22.621]
[1688261847174,56.549,18.71,18.697,22.623]
[1688261847682,56.549,18.71,18.696,22.624]
[1688261848577,56.549,18.71,18.697,23.32784123]
[1688261848778,22.609,18.71,18.699,22.621]
[1688261850278,22.609,18.71,18.693,69.09119922]
[1688261850460,22.609,18.71,18.697,22.623]
[1688261855284,64.04371639,18.71,18.695,22.626]
[1688261855476,55.0,18.709,18.696,2.5546764]
[1688261855676,80.833,18.706,18.696,2.5546764]
[1688261855873,80.833,18.706,18.695,22.626]
[1688261856481,22.617,18.702,18.695,22.626]
[1688261856868,97.0906,18.705,18.695,22.626]
[1688261857071,22.618,18.702,18.695,22.626]
[1688261857266,22.618,18.702,18.691,20.0]
[1688261857267,22.618,18.702,18.693,22.628]
[1688261857470,22.618,18.702,18.691,20.0]
[1688261857471,22.618,18.702,18.691,2.13605292]
[1688261857672,22.618,18.702,18.691,77.13605292]
[1688261857877,22.618,18.702,18.691,2.13605292]
[1688261858084,80.847,18.702,18.69,122.631]
[1688261858272,80.847,18.702,18.69,100.0]
[1688261858479,22.618,18.702,18.69,122.631]
[1688261858687,22.618,18.702,18.691,4.02325007]
[1688261859293,99.4779,18.701,18.691,4.02325007]
[1688261859587,22.622,18.698,18.69,122.631]
[1688261860394,22.622,18.698,18.69,100.0]
[1688261862088,22.622,18.698,18.69,122.632]
[1688261862273,22.622,18.698,18.69,122.631]
[1688261863588,80.863,18.698,18.69,122.631]
[1688261863993,80.863,18.698,18.69,100.0]
[1688261864597,80.863,18.698,18.692,22.629]
[1688261864598,22.622,18.698,18.692,22.629]
[1688261864890,22.622,18.698,18.69,100.0]
[1688261864891,22.622,18.698,18.69,122.631]
[1688261865094,22.622,18.698,18.691,77.631]
[1688261865285,80.863,18.698,18.69,100.0]
[1688261865487,22.622,18.698,18.691,55.0]
[1688261865875,22.622,18.698,18.693,22.628]
[1688261866076,22.622,18.698,18.691,55.0]